{"text_format":"3","workbook":"xlsx","n_sheets":3,"sheets":["Ödevler","Ay Görünümü","Hafta Görünümü"],"not_rendered":{"images":4,"defined_names":16},"read":"whole","date_system":"1900"}

{"sheet":"Ödevler","index":0,"n_rows":15,"n_cols":3,"rows_kept":15}
[null,"AY GÖRÜNÜMÜ","HAFTA GÖRÜNÜMÜ"]
[null," ÖDEVLER"]
[null,"AÇIKLAMA","SON TARİH"]
[null,"Ödev 1",{"$f":"TODAY()","v":"2016-11-29"}]
[null,"Ödev 2",{"$f":"TODAY()+15","v":"2016-12-14"}]
[null,"Ödev 3",{"$f":"TODAY()+30","v":"2016-12-29"}]
[null,"Ödev 4",{"$f":"TODAY()+45","v":"2017-01-13"}]
[null,"Ödev 5",{"$f":"TODAY()+60","v":"2017-01-28"}]
[null,"Ödev 6",{"$f":"TODAY()+75","v":"2017-02-12"}]
[null,"Ödev 7",{"$f":"TODAY()+90","v":"2017-02-27"}]
[null,"Ödev 8",{"$f":"TODAY()+105","v":"2017-03-14"}]
[null,"Ödev 9",{"$f":"TODAY()+115","v":"2017-03-24"}]
[null,"Ödev 10",{"$f":"TODAY()+130","v":"2017-04-08"}]
[null,"Ödev 11",{"$f":"TODAY()+145","v":"2017-04-23"}]
[null,"Ödev 12",{"$f":"TODAY()+160","v":"2017-05-08"}]

{"sheet":"Ay Görünümü","index":1,"n_rows":17,"n_cols":8,"rows_kept":17,"merged":[[3,1,3,7]]}
[null,"ÖDEVLER","HAFTA GÖRÜNÜMÜ"]
[null,"Ay Seçin:","Yıl Girin:"]
[null,"Eylül",{"$f":"YEAR(TODAY())","v":2016}]
[null," AY GÖRÜNÜMÜ"]
[null,"PAZARTESİ","SALI","ÇARŞAMBA","PERŞEMBE","CUMA","CUMARTESİ","PAZAR"]
[null,{"$f":"IF(WEEKDAY(DATEVALUE(\"1.\"&MoMonth&\".\"&MoYear)-1)=COLUMN(A$2),1,IF(LEN(A6)>0,A6+1,\"\"))","v":""},"","",1,2,3,4]
[null,{"$f":"IF(LEN(B6)=0,\"\",IF(COUNTIF(Ödevler[SON TARİH],DATE(MoYear,MoMonthNum,B6))>0,\"Ödev teslimi!\",\"\"))","v":""},{"$f":"IF(LEN(C6)=0,\"\",IF(COUNTIF(Ödevler[SON TARİH],DATE(MoYear,MoMonthNum,C6))>0,\"Ödev teslimi!\",\"\"))","v":""},{"$f":"IF(LEN(D6)=0,\"\",IF(COUNTIF(Ödevler[SON TARİH],DATE(MoYear,MoMonthNum,D6))>0,\"Ödev teslimi!\",\"\"))","v":""},{"$f":"IF(LEN(E6)=0,\"\",IF(COUNTIF(Ödevler[SON TARİH],DATE(MoYear,MoMonthNum,E6))>0,\"Ödev teslimi!\",\"\"))","v":""},{"$f":"IF(LEN(F6)=0,\"\",IF(COUNTIF(Ödevler[SON TARİH],DATE(MoYear,MoMonthNum,F6))>0,\"Ödev teslimi!\",\"\"))","v":""},{"$f":"IF(LEN(G6)=0,\"\",IF(COUNTIF(Ödevler[SON TARİH],DATE(MoYear,MoMonthNum,G6))>0,\"Ödev teslimi!\",\"\"))","v":""},{"$f":"IF(LEN(H6)=0,\"\",IF(COUNTIF(Ödevler[SON TARİH],DATE(MoYear,MoMonthNum,H6))>0,\"Ödev teslimi!\",\"\"))","v":""}]
[null,{"$f":"IF(LEN(H6)>0,IF(H6=DAY(DATE(MoYear,MoMonthNum+1,0)),\"\",H6+1),\"\")","v":5},{"$f":"IF(LEN(B8)>0,IF(B8=DAY(DATE(MoYear,MoMonthNum+1,0)),\"\",B8+1),\"\")","v":6},7,8,9,10,11]
[null,{"$f":"IF(LEN(B8)=0,\"\",IF(COUNTIF(Ödevler[SON TARİH],DATE(MoYear,MoMonthNum,B8))>0,\"Ödev teslimi!\",\"\"))","v":""},{"$f":"IF(LEN(C8)=0,\"\",IF(COUNTIF(Ödevler[SON TARİH],DATE(MoYear,MoMonthNum,C8))>0,\"Ödev teslimi!\",\"\"))","v":""},{"$f":"IF(LEN(D8)=0,\"\",IF(COUNTIF(Ödevler[SON TARİH],DATE(MoYear,MoMonthNum,D8))>0,\"Ödev teslimi!\",\"\"))","v":""},{"$f":"IF(LEN(E8)=0,\"\",IF(COUNTIF(Ödevler[SON TARİH],DATE(MoYear,MoMonthNum,E8))>0,\"Ödev teslimi!\",\"\"))","v":""},{"$f":"IF(LEN(F8)=0,\"\",IF(COUNTIF(Ödevler[SON TARİH],DATE(MoYear,MoMonthNum,F8))>0,\"Ödev teslimi!\",\"\"))","v":""},{"$f":"IF(LEN(G8)=0,\"\",IF(COUNTIF(Ödevler[SON TARİH],DATE(MoYear,MoMonthNum,G8))>0,\"Ödev teslimi!\",\"\"))","v":""},{"$f":"IF(LEN(H8)=0,\"\",IF(COUNTIF(Ödevler[SON TARİH],DATE(MoYear,MoMonthNum,H8))>0,\"Ödev teslimi!\",\"\"))","v":""}]
[null,{"$f":"IF(LEN(H8)>0,IF(H8=DAY(DATE(MoYear,MoMonthNum+1,0)),\"\",H8+1),\"\")","v":12},{"$f":"IF(LEN(B10)>0,IF(B10=DAY(DATE(MoYear,MoMonthNum+1,0)),\"\",B10+1),\"\")","v":13},14,15,16,17,18]
[null,{"$f":"IF(LEN(B10)=0,\"\",IF(COUNTIF(Ödevler[SON TARİH],DATE(MoYear,MoMonthNum,B10))>0,\"Ödev teslimi!\",\"\"))","v":""},{"$f":"IF(LEN(C10)=0,\"\",IF(COUNTIF(Ödevler[SON TARİH],DATE(MoYear,MoMonthNum,C10))>0,\"Ödev teslimi!\",\"\"))","v":""},{"$f":"IF(LEN(D10)=0,\"\",IF(COUNTIF(Ödevler[SON TARİH],DATE(MoYear,MoMonthNum,D10))>0,\"Ödev teslimi!\",\"\"))","v":""},{"$f":"IF(LEN(E10)=0,\"\",IF(COUNTIF(Ödevler[SON TARİH],DATE(MoYear,MoMonthNum,E10))>0,\"Ödev teslimi!\",\"\"))","v":""},{"$f":"IF(LEN(F10)=0,\"\",IF(COUNTIF(Ödevler[SON TARİH],DATE(MoYear,MoMonthNum,F10))>0,\"Ödev teslimi!\",\"\"))","v":""},{"$f":"IF(LEN(G10)=0,\"\",IF(COUNTIF(Ödevler[SON TARİH],DATE(MoYear,MoMonthNum,G10))>0,\"Ödev teslimi!\",\"\"))","v":""},{"$f":"IF(LEN(H10)=0,\"\",IF(COUNTIF(Ödevler[SON TARİH],DATE(MoYear,MoMonthNum,H10))>0,\"Ödev teslimi!\",\"\"))","v":""}]
[null,{"$f":"IF(LEN(H10)>0,IF(H10=DAY(DATE(MoYear,MoMonthNum+1,0)),\"\",H10+1),\"\")","v":19},{"$f":"IF(LEN(B12)>0,IF(B12=DAY(DATE(MoYear,MoMonthNum+1,0)),\"\",B12+1),\"\")","v":20},21,22,23,24,25]
[null,{"$f":"IF(LEN(B12)=0,\"\",IF(COUNTIF(Ödevler[SON TARİH],DATE(MoYear,MoMonthNum,B12))>0,\"Ödev teslimi!\",\"\"))","v":""},{"$f":"IF(LEN(C12)=0,\"\",IF(COUNTIF(Ödevler[SON TARİH],DATE(MoYear,MoMonthNum,C12))>0,\"Ödev teslimi!\",\"\"))","v":""},{"$f":"IF(LEN(D12)=0,\"\",IF(COUNTIF(Ödevler[SON TARİH],DATE(MoYear,MoMonthNum,D12))>0,\"Ödev teslimi!\",\"\"))","v":""},{"$f":"IF(LEN(E12)=0,\"\",IF(COUNTIF(Ödevler[SON TARİH],DATE(MoYear,MoMonthNum,E12))>0,\"Ödev teslimi!\",\"\"))","v":""},{"$f":"IF(LEN(F12)=0,\"\",IF(COUNTIF(Ödevler[SON TARİH],DATE(MoYear,MoMonthNum,F12))>0,\"Ödev teslimi!\",\"\"))","v":""},{"$f":"IF(LEN(G12)=0,\"\",IF(COUNTIF(Ödevler[SON TARİH],DATE(MoYear,MoMonthNum,G12))>0,\"Ödev teslimi!\",\"\"))","v":""},{"$f":"IF(LEN(H12)=0,\"\",IF(COUNTIF(Ödevler[SON TARİH],DATE(MoYear,MoMonthNum,H12))>0,\"Ödev teslimi!\",\"\"))","v":""}]
[null,{"$f":"IF(LEN(H12)>0,IF(H12=DAY(DATE(MoYear,MoMonthNum+1,0)),\"\",H12+1),\"\")","v":26},{"$f":"IF(LEN(B14)>0,IF(B14=DAY(DATE(MoYear,MoMonthNum+1,0)),\"\",B14+1),\"\")","v":27},28,29,30,"",""]
[null,{"$f":"IF(LEN(B14)=0,\"\",IF(COUNTIF(Ödevler[SON TARİH],DATE(MoYear,MoMonthNum,B14))>0,\"Ödev teslimi!\",\"\"))","v":""},{"$f":"IF(LEN(C14)=0,\"\",IF(COUNTIF(Ödevler[SON TARİH],DATE(MoYear,MoMonthNum,C14))>0,\"Ödev teslimi!\",\"\"))","v":""},{"$f":"IF(LEN(D14)=0,\"\",IF(COUNTIF(Ödevler[SON TARİH],DATE(MoYear,MoMonthNum,D14))>0,\"Ödev teslimi!\",\"\"))","v":""},{"$f":"IF(LEN(E14)=0,\"\",IF(COUNTIF(Ödevler[SON TARİH],DATE(MoYear,MoMonthNum,E14))>0,\"Ödev teslimi!\",\"\"))","v":""},{"$f":"IF(LEN(F14)=0,\"\",IF(COUNTIF(Ödevler[SON TARİH],DATE(MoYear,MoMonthNum,F14))>0,\"Ödev teslimi!\",\"\"))","v":""},{"$f":"IF(LEN(G14)=0,\"\",IF(COUNTIF(Ödevler[SON TARİH],DATE(MoYear,MoMonthNum,G14))>0,\"Ödev teslimi!\",\"\"))","v":""},{"$f":"IF(LEN(H14)=0,\"\",IF(COUNTIF(Ödevler[SON TARİH],DATE(MoYear,MoMonthNum,H14))>0,\"Ödev teslimi!\",\"\"))","v":""}]
[null,{"$f":"IF(LEN(H14)>0,IF(H14=DAY(DATE(MoYear,MoMonthNum+1,0)),\"\",H14+1),\"\")","v":""},{"$f":"IF(LEN(B16)>0,IF(B16=DAY(DATE(MoYear,MoMonthNum+1,0)),\"\",B16+1),\"\")","v":""},"","","","",""]
[null,{"$f":"IF(LEN(B16)=0,\"\",IF(COUNTIF(Ödevler[SON TARİH],DATE(MoYear,MoMonthNum,B16))>0,\"Ödev teslimi!\",\"\"))","v":""},{"$f":"IF(LEN(C16)=0,\"\",IF(COUNTIF(Ödevler[SON TARİH],DATE(MoYear,MoMonthNum,C16))>0,\"Ödev teslimi!\",\"\"))","v":""},{"$f":"IF(LEN(D16)=0,\"\",IF(COUNTIF(Ödevler[SON TARİH],DATE(MoYear,MoMonthNum,D16))>0,\"Ödev teslimi!\",\"\"))","v":""},{"$f":"IF(LEN(E16)=0,\"\",IF(COUNTIF(Ödevler[SON TARİH],DATE(MoYear,MoMonthNum,E16))>0,\"Ödev teslimi!\",\"\"))","v":""},{"$f":"IF(LEN(F16)=0,\"\",IF(COUNTIF(Ödevler[SON TARİH],DATE(MoYear,MoMonthNum,F16))>0,\"Ödev teslimi!\",\"\"))","v":""},{"$f":"IF(LEN(G16)=0,\"\",IF(COUNTIF(Ödevler[SON TARİH],DATE(MoYear,MoMonthNum,G16))>0,\"Ödev teslimi!\",\"\"))","v":""},{"$f":"IF(LEN(H16)=0,\"\",IF(COUNTIF(Ödevler[SON TARİH],DATE(MoYear,MoMonthNum,H16))>0,\"Ödev teslimi!\",\"\"))","v":""}]

{"sheet":"Hafta Görünümü","index":2,"n_rows":17,"n_cols":8,"rows_kept":17,"merged":[[3,1,3,7]]}
[null,"ÖDEVLER","AY GÖRÜNÜMÜ"]
[null,"Ay Seçin:","Yıl Girin:","Hafta Sayısını Seçin:"]
[null,"Eylül",{"$f":"YEAR(TODAY())","v":2016},"Hafta 1"]
[null," HAFTA GÖRÜNÜMÜ"]
[null,{"$f":"IF(WEEKDAY(DATEVALUE(\"1.\"&WkMonth&\".\"&WkYear)-1)=COLUMN(A$2),1,IF(LEN(A5)>0,A5+1,\"\"))","v":""},"","",1,2,3,4]
[null,{"$f":"IF(LEN(H5)>0,IF(H5=LastDayOfMonth_Week,\"\",H5+1),\"\")","v":5},{"$f":"IF(LEN(B6)>0,IF(B6=LastDayOfMonth_Week,\"\",B6+1),\"\")","v":6},7,8,9,10,11]
[null,{"$f":"IF(LEN(H6)>0,IF(H6=LastDayOfMonth_Week,\"\",H6+1),\"\")","v":12},13,14,15,16,17,18]
[null,{"$f":"IF(LEN(H7)>0,IF(H7=LastDayOfMonth_Week,\"\",H7+1),\"\")","v":19},20,21,22,23,24,25]
[null,{"$f":"IF(LEN(H8)>0,IF(H8=LastDayOfMonth_Week,\"\",H8+1),\"\")","v":26},27,28,29,30,"",""]
[null,{"$f":"IF(LEN(H9)>0,IF(H9=LastDayOfMonth_Week,\"\",H9+1),\"\")","v":""},"","","","","",""]
[null,"PAZARTESİ","SALI","ÇARŞAMBA","PERŞEMBE","CUMA","CUMARTESİ","PAZAR"]
[null,{"$f":"IF(B14=\"\",IF(AND(ISNUMBER(A12),A12<LastDayOfMonth_Week),A12+1,\"\"),IF(B14<=7,\"\",INDEX(WkMonthView,WkWeek,COLUMN(A$2))-7))","v":""},"","","","","",""]
[null,{"$f":"IF(LEN(B12)=0,\"\",IF(COUNTIF(Ödevler[SON TARİH],DATE(WkYear,WkMonthNum,B12))>0,\"Ödev teslimi!\",\"\"))","v":""},{"$f":"IF(LEN(C12)=0,\"\",IF(COUNTIF(Ödevler[SON TARİH],DATE(WkYear,WkMonthNum,C12))>0,\"Ödev teslimi!\",\"\"))","v":""},{"$f":"IF(LEN(D12)=0,\"\",IF(COUNTIF(Ödevler[SON TARİH],DATE(WkYear,WkMonthNum,D12))>0,\"Ödev teslimi!\",\"\"))","v":""},{"$f":"IF(LEN(E12)=0,\"\",IF(COUNTIF(Ödevler[SON TARİH],DATE(WkYear,WkMonthNum,E12))>0,\"Ödev teslimi!\",\"\"))","v":""},{"$f":"IF(LEN(F12)=0,\"\",IF(COUNTIF(Ödevler[SON TARİH],DATE(WkYear,WkMonthNum,F12))>0,\"Ödev teslimi!\",\"\"))","v":""},{"$f":"IF(LEN(G12)=0,\"\",IF(COUNTIF(Ödevler[SON TARİH],DATE(WkYear,WkMonthNum,G12))>0,\"Ödev teslimi!\",\"\"))","v":""},{"$f":"IF(LEN(H12)=0,\"\",IF(COUNTIF(Ödevler[SON TARİH],DATE(WkYear,WkMonthNum,H12))>0,\"Ödev teslimi!\",\"\"))","v":""}]
[null,{"$f":"INDEX(WkMonthView,WkWeek,COLUMN(A$2))","v":""},{"$f":"INDEX(WkMonthView,WkWeek,COLUMN(B$2))","v":""},{"$f":"INDEX(WkMonthView,WkWeek,COLUMN(C$2))","v":""},{"$f":"INDEX(WkMonthView,WkWeek,COLUMN(D$2))","v":1},{"$f":"INDEX(WkMonthView,WkWeek,COLUMN(E$2))","v":2},{"$f":"INDEX(WkMonthView,WkWeek,COLUMN(F$2))","v":3},{"$f":"INDEX(WkMonthView,WkWeek,COLUMN(G$2))","v":4}]
[null,{"$f":"IF(LEN(B14)=0,\"\",IF(COUNTIF(Ödevler[SON TARİH],DATE(WkYear,WkMonthNum,B14))>0,\"Ödev teslimi!\",\"\"))","v":""},{"$f":"IF(LEN(C14)=0,\"\",IF(COUNTIF(Ödevler[SON TARİH],DATE(WkYear,WkMonthNum,C14))>0,\"Ödev teslimi!\",\"\"))","v":""},{"$f":"IF(LEN(D14)=0,\"\",IF(COUNTIF(Ödevler[SON TARİH],DATE(WkYear,WkMonthNum,D14))>0,\"Ödev teslimi!\",\"\"))","v":""},{"$f":"IF(LEN(E14)=0,\"\",IF(COUNTIF(Ödevler[SON TARİH],DATE(WkYear,WkMonthNum,E14))>0,\"Ödev teslimi!\",\"\"))","v":""},{"$f":"IF(LEN(F14)=0,\"\",IF(COUNTIF(Ödevler[SON TARİH],DATE(WkYear,WkMonthNum,F14))>0,\"Ödev teslimi!\",\"\"))","v":""},{"$f":"IF(LEN(G14)=0,\"\",IF(COUNTIF(Ödevler[SON TARİH],DATE(WkYear,WkMonthNum,G14))>0,\"Ödev teslimi!\",\"\"))","v":""},{"$f":"IF(LEN(H14)=0,\"\",IF(COUNTIF(Ödevler[SON TARİH],DATE(WkYear,WkMonthNum,H14))>0,\"Ödev teslimi!\",\"\"))","v":""}]
[null,{"$f":"IFERROR(IF(B14=\"\",IF(AND(ISNUMBER(A16),A16<LastDayOfMonth_Week),A16+1,$H$14+COLUMN(A$2)),IF(B14+7>LastDayOfMonth_Week,\"\",INDEX(WkMonthView,WkWeek,COLUMN(A$2))+7)),\"\")","v":5},{"$f":"IFERROR(IF(C14=\"\",IF(AND(ISNUMBER(B16),B16<LastDayOfMonth_Week),B16+1,$H$14+COLUMN(B$2)),IF(C14+7>LastDayOfMonth_Week,\"\",INDEX(WkMonthView,WkWeek,COLUMN(B$2))+7)),\"\")","v":6},{"$f":"IFERROR(IF(D14=\"\",IF(AND(ISNUMBER(C16),C16<LastDayOfMonth_Week),C16+1,$H$14+COLUMN(C$2)),IF(D14+7>LastDayOfMonth_Week,\"\",INDEX(WkMonthView,WkWeek,COLUMN(C$2))+7)),\"\")","v":7},{"$f":"IFERROR(IF(E14=\"\",IF(AND(ISNUMBER(D16),D16<LastDayOfMonth_Week),D16+1,$H$14+COLUMN(D$2)),IF(E14+7>LastDayOfMonth_Week,\"\",INDEX(WkMonthView,WkWeek,COLUMN(D$2))+7)),\"\")","v":8},{"$f":"IFERROR(IF(F14=\"\",IF(AND(ISNUMBER(E16),E16<LastDayOfMonth_Week),E16+1,$H$14+COLUMN(E$2)),IF(F14+7>LastDayOfMonth_Week,\"\",INDEX(WkMonthView,WkWeek,COLUMN(E$2))+7)),\"\")","v":9},{"$f":"IFERROR(IF(G14=\"\",IF(AND(ISNUMBER(F16),F16<LastDayOfMonth_Week),F16+1,$H$14+COLUMN(F$2)),IF(G14+7>LastDayOfMonth_Week,\"\",INDEX(WkMonthView,WkWeek,COLUMN(F$2))+7)),\"\")","v":10},{"$f":"IFERROR(IF(H14=\"\",IF(AND(ISNUMBER(G16),G16<LastDayOfMonth_Week),G16+1,$H$14+COLUMN(G$2)),IF(H14+7>LastDayOfMonth_Week,\"\",INDEX(WkMonthView,WkWeek,COLUMN(G$2))+7)),\"\")","v":11}]
[null,{"$f":"IF(LEN(B16)=0,\"\",IF(COUNTIF(Ödevler[SON TARİH],DATE(WkYear,WkMonthNum,B16))>0,\"Ödev teslimi!\",\"\"))","v":""},{"$f":"IF(LEN(C16)=0,\"\",IF(COUNTIF(Ödevler[SON TARİH],DATE(WkYear,WkMonthNum,C16))>0,\"Ödev teslimi!\",\"\"))","v":""},{"$f":"IF(LEN(D16)=0,\"\",IF(COUNTIF(Ödevler[SON TARİH],DATE(WkYear,WkMonthNum,D16))>0,\"Ödev teslimi!\",\"\"))","v":""},{"$f":"IF(LEN(E16)=0,\"\",IF(COUNTIF(Ödevler[SON TARİH],DATE(WkYear,WkMonthNum,E16))>0,\"Ödev teslimi!\",\"\"))","v":""},{"$f":"IF(LEN(F16)=0,\"\",IF(COUNTIF(Ödevler[SON TARİH],DATE(WkYear,WkMonthNum,F16))>0,\"Ödev teslimi!\",\"\"))","v":""},{"$f":"IF(LEN(G16)=0,\"\",IF(COUNTIF(Ödevler[SON TARİH],DATE(WkYear,WkMonthNum,G16))>0,\"Ödev teslimi!\",\"\"))","v":""},{"$f":"IF(LEN(H16)=0,\"\",IF(COUNTIF(Ödevler[SON TARİH],DATE(WkYear,WkMonthNum,H16))>0,\"Ödev teslimi!\",\"\"))","v":""}]